[Event "Titled Tuesday Blitz November 14 Early 2023"]
[White "Sattarov, Bobir"]
[Black "Bilan, Danila"]
[WhiteFideId "14203081"]
[BlackFideId "24161918"]
[WhiteElo "2744"]
[BlackElo "2558"]
[Result "1-0"]
[Round "6"]
[TimeControl "180+1"]
[Date "2023.11.14"]
[WhiteClock "0:00:03"]
[BlackClock "0:00:00"]
[Board "58"]

1. e4 {[%clk 0:03:00]}  c6 {[%clk 0:02:50]} 2. c4 {[%clk 0:03:00]}  d5 {[%clk 0:02:49]} 3. exd5 {[%clk 0:03:01]}  Nf6 {[%clk 0:02:49]} 4. d4 {[%clk 0:03:00]}  cxd5 {[%clk 0:02:48]} 5. Nc3 {[%clk 0:03:00]}  Nc6 {[%clk 0:02:48]} 6. Bg5 {[%clk 0:02:59]}  e6 {[%clk 0:02:43]} 7. Nf3 {[%clk 0:02:58]}  Be7 {[%clk 0:02:43]} 8. Bd3 {[%clk 0:02:58]}  Nb4 {[%clk 0:02:38]} 9. Bxf6 {[%clk 0:02:37]}  Nxd3+ {[%clk 0:02:33]} 10. Qxd3 {[%clk 0:02:38]}  Bxf6 {[%clk 0:02:34]} 11. cxd5 {[%clk 0:02:38]}  exd5 {[%clk 0:02:35]} 12. Qb5+ {[%clk 0:02:38]}  Bd7 {[%clk 0:02:31]} 13. Qxd5 {[%clk 0:02:34]}  O-O {[%clk 0:02:29]} 14. O-O {[%clk 0:02:34]}  Bc6 {[%clk 0:02:09]} 15. Qf5 {[%clk 0:02:20]}  Bxf3 {[%clk 0:02:00]} 16. Qxf3 {[%clk 0:02:21]}  Qxd4 {[%clk 0:01:58]} 17. Nd5 {[%clk 0:01:41]}  Rfd8 {[%clk 0:01:38]} 18. Rfd1 {[%clk 0:01:24]}  Qxb2 {[%clk 0:01:32]} 19. Rab1 {[%clk 0:01:23]}  Qe5 {[%clk 0:01:24]} 20. Rxb7 {[%clk 0:01:20]}  Rab8 {[%clk 0:01:10]} 21. Rxb8 {[%clk 0:01:07]}  Rxb8 {[%clk 0:01:11]} 22. g3 {[%clk 0:01:00]}  Bd8 {[%clk 0:00:51]} 23. Ne3 {[%clk 0:00:43]}  g6 {[%clk 0:00:46]} 24. Rd7 {[%clk 0:00:42]}  Qf6 {[%clk 0:00:35]} 25. Qxf6 {[%clk 0:00:36]}  Bxf6 {[%clk 0:00:36]} 26. Rxa7 {[%clk 0:00:36]}  Rb2 {[%clk 0:00:36]} 27. Ra4 {[%clk 0:00:16]}  h5 {[%clk 0:00:35]} 28. Kf1 {[%clk 0:00:15]}  Be7 {[%clk 0:00:32]} 29. Ra5 {[%clk 0:00:14]}  Bf6 {[%clk 0:00:30]} 30. Nc4 {[%clk 0:00:13]}  Rc2 {[%clk 0:00:28]} 31. Ne3 {[%clk 0:00:13]}  Rb2 {[%clk 0:00:28]} 32. Nd1 {[%clk 0:00:11]}  Rd2 {[%clk 0:00:26]} 33. Ke1 {[%clk 0:00:11]}  Rc2 {[%clk 0:00:24]} 34. Ra4 {[%clk 0:00:08]}  Be7 {[%clk 0:00:19]} 35. Ne3 {[%clk 0:00:08]}  Rb2 {[%clk 0:00:17]} 36. h4 {[%clk 0:00:08]}  Bb4+ {[%clk 0:00:15]} 37. Kf1 {[%clk 0:00:06]}  Bc5 {[%clk 0:00:16]} 38. Nd1 {[%clk 0:00:06]}  Rd2 {[%clk 0:00:15]} 39. Ke1 {[%clk 0:00:06]}  Rc2 {[%clk 0:00:14]} 40. Ra8+ {[%clk 0:00:05]}  Kg7 {[%clk 0:00:14]} 41. a4 {[%clk 0:00:05]}  Ra2 {[%clk 0:00:12]} 42. f3 {[%clk 0:00:05]}  f5 {[%clk 0:00:09]} 43. Ra6 {[%clk 0:00:03]}  Kh6 {[%clk 0:00:07]} 44. Kf1 {[%clk 0:00:03]}  Kg7 {[%clk 0:00:07]} 45. Ke1 {[%clk 0:00:03]}  Kh6 {[%clk 0:00:07]} 46. Rc6 {[%clk 0:00:02]}  Bb4+ {[%clk 0:00:06]} 47. Kf1 {[%clk 0:00:03]}  Rxa4 {[%clk 0:00:04]} 48. Ne3 {[%clk 0:00:03]}  Ra1+ {[%clk 0:00:04]} 49. Ke2 {[%clk 0:00:03]}  Ra2+ {[%clk 0:00:03]} 50. Kd1 {[%clk 0:00:04]}  Kg7 {[%clk 0:00:03]} 51. Rc7+ {[%clk 0:00:03]}  Kh6 {[%clk 0:00:02]} 52. Rc6 {[%clk 0:00:03]}  Rd2+ {[%clk 0:00:01]} 53. Kc1 {[%clk 0:00:03]}  Kg7 {[%clk 0:00:01]} 54. Nc4 {[%clk 0:00:02]}  Rf2 {[%clk 0:00:01]} 55. Ne5 {[%clk 0:00:02]}  Bd2+ {[%clk 0:00:01]} 56. Kd1 {[%clk 0:00:02]}  Be3 {[%clk 0:00:01]} 57. Rxg6+ {[%clk 0:00:02]}  Kh7 {[%clk 0:00:02]} 58. f4 {[%clk 0:00:02]}  Rg2 {[%clk 0:00:02]} 59. Rg5 {[%clk 0:00:02]}  Bf2 {[%clk 0:00:02]} 60. Rxh5+ {[%clk 0:00:02]}  Kg7 {[%clk 0:00:03]} 61. Rg5+ {[%clk 0:00:02]}  Kf6 {[%clk 0:00:03]} 62. Rg6+ {[%clk 0:00:03]}  Ke7 {[%clk 0:00:04]} 63. h5 {[%clk 0:00:03]}  Rxg3 {[%clk 0:00:04]} 64. h6 {[%clk 0:00:02]}  Rxg6 {[%clk 0:00:03]} 65. Nxg6+ {[%clk 0:00:03]}  Kf6 {[%clk 0:00:00]} 66. h7 {[%clk 0:00:03]} 1-0


[Site "https://www.chess.com"]

[Event "Titled Tuesday Blitz November 14 Early 2023"]
[White "Pham, Le Thao Nguyen"]
[Black "Aradhya, Garg"]
[WhiteFideId "12401226"]
[BlackFideId "25006746"]
[WhiteElo "2553"]
[BlackElo "2738"]
[Result "0-1"]
[Round "6"]
[TimeControl "180+1"]
[Date "2023.11.14"]
[WhiteClock "0:00:04"]
[BlackClock "0:00:35"]
[Board "59"]

1. d4 {[%clk 0:03:00]}  d5 {[%clk 0:02:59]} 2. c4 {[%clk 0:03:00]}  e6 {[%clk 0:02:59]} 3. Nc3 {[%clk 0:03:00]}  Nf6 {[%clk 0:02:59]} 4. Bg5 {[%clk 0:03:00]}  Be7 {[%clk 0:02:58]} 5. e3 {[%clk 0:03:00]}  h6 {[%clk 0:02:57]} 6. Bh4 {[%clk 0:03:00]}  O-O {[%clk 0:02:57]} 7. Nf3 {[%clk 0:02:57]}  dxc4 {[%clk 0:02:54]} 8. Bxc4 {[%clk 0:02:57]}  c5 {[%clk 0:02:55]} 9. O-O {[%clk 0:02:56]}  cxd4 {[%clk 0:02:53]} 10. Nxd4 {[%clk 0:02:54]}  Bd7 {[%clk 0:02:53]} 11. Qb3 {[%clk 0:02:47]}  Nc6 {[%clk 0:02:38]} 12. Qxb7 {[%clk 0:02:40]}  Na5 {[%clk 0:02:37]} 13. Qa6 {[%clk 0:02:40]}  Bc8 {[%clk 0:02:31]} 14. Qb5 {[%clk 0:02:06]}  a6 {[%clk 0:02:31]} 15. Qa4 {[%clk 0:02:05]}  Bd7 {[%clk 0:02:31]} 16. Qc2 {[%clk 0:01:44]}  Nxc4 {[%clk 0:02:31]} 17. Rfd1 {[%clk 0:01:45]}  Nd6 {[%clk 0:02:06]} 18. Qe2 {[%clk 0:01:29]}  Qb6 {[%clk 0:01:35]} 19. e4 {[%clk 0:01:25]}  Nb5 {[%clk 0:01:21]} 20. Nf3 {[%clk 0:00:50]}  Nxc3 {[%clk 0:01:16]} 21. bxc3 {[%clk 0:00:51]}  Bc6 {[%clk 0:01:11]} 22. Nd4 {[%clk 0:00:23]}  Rfe8 {[%clk 0:00:54]} 23. e5 {[%clk 0:00:13]}  Nd5 {[%clk 0:00:52]} 24. Bxe7 {[%clk 0:00:09]}  Nxc3 {[%clk 0:00:38]} 25. Qc4 {[%clk 0:00:08]}  Nxd1 {[%clk 0:00:37]} 26. Nxc6 {[%clk 0:00:04]}  Qxf2+ {[%clk 0:00:35]} 0-1


[Site "https://www.chess.com"]

[Event "Titled Tuesday Blitz November 14 Early 2023"]
[White "Lima, Kleyton Alcantara"]
[Black "Hayrapetyan, Hovik"]
[WhiteFideId "22718397"]
[BlackFideId "13302639"]
[WhiteElo "2553"]
[BlackElo "2735"]
[Result "1-0"]
[Round "6"]
[TimeControl "180+1"]
[Date "2023.11.14"]
[WhiteClock "0:00:13"]
[BlackClock "0:00:00"]
[Board "60"]

1. e4 {[%clk 0:03:00]}  c5 {[%clk 0:02:56]} 2. Nf3 {[%clk 0:03:01]}  d6 {[%clk 0:02:56]} 3. d4 {[%clk 0:03:01]}  cxd4 {[%clk 0:02:57]} 4. Nxd4 {[%clk 0:03:02]}  Nf6 {[%clk 0:02:57]} 5. Nc3 {[%clk 0:03:03]}  a6 {[%clk 0:02:58]} 6. Bg5 {[%clk 0:03:03]}  Nbd7 {[%clk 0:02:58]} 7. Qe2 {[%clk 0:03:01]}  h6 {[%clk 0:02:56]} 8. Bh4 {[%clk 0:02:52]}  g6 {[%clk 0:02:56]} 9. f4 {[%clk 0:02:52]}  e5 {[%clk 0:02:56]} 10. fxe5 {[%clk 0:02:53]}  dxe5 {[%clk 0:02:57]} 11. O-O-O {[%clk 0:02:53]}  Qc7 {[%clk 0:02:58]} 12. Nb3 {[%clk 0:02:52]}  b5 {[%clk 0:02:58]} 13. Nd5 {[%clk 0:02:53]}  Nxd5 {[%clk 0:02:57]} 14. exd5 {[%clk 0:02:54]}  Bd6 {[%clk 0:02:57]} 15. Qd2 {[%clk 0:02:53]}  Nc5 {[%clk 0:02:38]} 16. Nxc5 {[%clk 0:02:47]}  Qxc5 {[%clk 0:02:35]} 17. Bf6 {[%clk 0:02:38]}  Be7 {[%clk 0:02:17]} 18. Bxe7 {[%clk 0:02:30]}  Qxe7 {[%clk 0:02:17]} 19. d6 {[%clk 0:02:29]}  Qg5 {[%clk 0:02:17]} 20. Re1 {[%clk 0:02:13]}  Qxd2+ {[%clk 0:02:13]} 21. Kxd2 {[%clk 0:02:13]}  f6 {[%clk 0:02:13]} 22. Bd3 {[%clk 0:02:11]}  Kf7 {[%clk 0:01:59]} 23. Rhf1 {[%clk 0:02:10]}  Kg7 {[%clk 0:01:59]} 24. a4 {[%clk 0:01:45]}  Rd8 {[%clk 0:01:37]} 25. axb5 {[%clk 0:01:40]}  Rxd6 {[%clk 0:01:37]} 26. bxa6 {[%clk 0:01:35]}  Bxa6 {[%clk 0:01:38]} 27. Ke3 {[%clk 0:01:32]}  Bxd3 {[%clk 0:01:37]} 28. cxd3 {[%clk 0:01:33]}  Rb8 {[%clk 0:01:36]} 29. Re2 {[%clk 0:01:31]}  Rb3 {[%clk 0:01:34]} 30. Rd2 {[%clk 0:01:29]}  f5 {[%clk 0:01:34]} 31. Ke2 {[%clk 0:01:27]}  Kf6 {[%clk 0:01:31]} 32. Rc1 {[%clk 0:01:26]}  Rdb6 {[%clk 0:01:20]} 33. Rcc2 {[%clk 0:01:08]}  g5 {[%clk 0:01:15]} 34. g3 {[%clk 0:01:06]}  f4 {[%clk 0:01:07]} 35. Kf3 {[%clk 0:01:04]}  h5 {[%clk 0:01:02]} 36. gxf4 {[%clk 0:01:03]}  gxf4 {[%clk 0:00:53]} 37. Ke4 {[%clk 0:00:59]}  R6b4+ {[%clk 0:00:42]} 38. d4 {[%clk 0:00:58]}  Re3+ {[%clk 0:00:36]} 39. Kd5 {[%clk 0:00:57]}  e4 {[%clk 0:00:37]} 40. Rc6+ {[%clk 0:00:26]}  Kf5 {[%clk 0:00:36]} 41. Rc8 {[%clk 0:00:26]}  f3 {[%clk 0:00:23]} 42. Rf8+ {[%clk 0:00:23]}  Kg4 {[%clk 0:00:21]} 43. Ke5 {[%clk 0:00:24]}  Rd3 {[%clk 0:00:16]} 44. Rf4+ {[%clk 0:00:20]}  Kg5 {[%clk 0:00:10]} 45. h4+ {[%clk 0:00:19]}  Kg6 {[%clk 0:00:09]} 46. Rxd3 {[%clk 0:00:20]}  exd3 {[%clk 0:00:10]} 47. Rxf3 {[%clk 0:00:20]}  Rb3 {[%clk 0:00:08]} 48. Rg3+ {[%clk 0:00:18]}  Kf7 {[%clk 0:00:00]} 49. Rg2 {[%clk 0:00:13]} 1-0


[Site "https://www.chess.com"]

[Event "Titled Tuesday Blitz November 14 Early 2023"]
[White "Grunberg, Mihai-Lucian"]
[Black "Krivonosov, Oleg"]
[WhiteFideId "1204149"]
[BlackFideId "11600349"]
[WhiteElo "2551"]
[BlackElo "2716"]
[Result "1/2-1/2"]
[Round "6"]
[TimeControl "180+1"]
[Date "2023.11.14"]
[WhiteClock "0:00:38"]
[BlackClock "0:00:16"]
[Board "63"]

1. Nf3 {[%clk 0:03:00]}  d5 {[%clk 0:02:59]} 2. c4 {[%clk 0:02:59]}  e6 {[%clk 0:02:58]} 3. g3 {[%clk 0:02:59]}  Nf6 {[%clk 0:02:57]} 4. Bg2 {[%clk 0:03:00]}  Be7 {[%clk 0:02:57]} 5. O-O {[%clk 0:03:00]}  O-O {[%clk 0:02:57]} 6. d4 {[%clk 0:03:01]}  Nbd7 {[%clk 0:02:56]} 7. Nc3 {[%clk 0:03:00]}  c6 {[%clk 0:02:56]} 8. b3 {[%clk 0:02:59]}  b6 {[%clk 0:02:55]} 9. Qc2 {[%clk 0:02:58]}  Ba6 {[%clk 0:02:53]} 10. e4 {[%clk 0:02:53]}  dxc4 {[%clk 0:02:52]} 11. Qe2 {[%clk 0:02:53]}  b5 {[%clk 0:02:50]} 12. bxc4 {[%clk 0:02:52]}  bxc4 {[%clk 0:02:51]} 13. Nd2 {[%clk 0:02:45]}  Nb6 {[%clk 0:02:46]} 14. Nf3 {[%clk 0:02:38]}  c5 {[%clk 0:02:38]} 15. Rd1 {[%clk 0:02:36]}  Qc8 {[%clk 0:02:26]} 16. Ba3 {[%clk 0:02:28]}  Re8 {[%clk 0:02:21]} 17. Ne5 {[%clk 0:02:20]}  cxd4 {[%clk 0:02:17]} 18. Bxe7 {[%clk 0:02:19]}  Rxe7 {[%clk 0:02:15]} 19. Rxd4 {[%clk 0:02:18]}  Qc5 {[%clk 0:02:11]} 20. Nf3 {[%clk 0:02:18]}  e5 {[%clk 0:02:06]} 21. Rd2 {[%clk 0:02:14]}  Rd7 {[%clk 0:02:04]} 22. Rc1 {[%clk 0:02:07]}  Rad8 {[%clk 0:02:01]} 23. h4 {[%clk 0:02:03]}  h6 {[%clk 0:02:00]} 24. Bh3 {[%clk 0:02:02]}  Rxd2 {[%clk 0:01:57]} 25. Nxd2 {[%clk 0:02:02]}  Rd3 {[%clk 0:01:47]} 26. Nf1 {[%clk 0:01:55]}  Qd4 {[%clk 0:01:43]} 27. Qc2 {[%clk 0:01:42]}  Nxe4 {[%clk 0:01:33]} 28. Nxe4 {[%clk 0:01:41]}  Qxe4 {[%clk 0:01:34]} 29. Bg2 {[%clk 0:01:39]}  Qd4 {[%clk 0:01:33]} 30. Ne3 {[%clk 0:01:34]}  Rd2 {[%clk 0:01:27]} 31. Qb1 {[%clk 0:01:31]}  Bc8 {[%clk 0:01:18]} 32. Qb5 {[%clk 0:01:19]}  Bd7 {[%clk 0:01:11]} 33. Qa6 {[%clk 0:01:19]}  Qb2 {[%clk 0:01:05]} 34. Rf1 {[%clk 0:01:09]}  c3 {[%clk 0:01:00]} 35. Be4 {[%clk 0:01:05]}  g6 {[%clk 0:00:54]} 36. Qb7 {[%clk 0:00:59]}  Be6 {[%clk 0:00:49]} 37. Qb8+ {[%clk 0:00:58]}  Kh7 {[%clk 0:00:48]} 38. Qxe5 {[%clk 0:00:58]}  Nc4 {[%clk 0:00:39]} 39. Bxg6+ {[%clk 0:00:46]}  Kxg6 {[%clk 0:00:33]} 40. Qe4+ {[%clk 0:00:45]}  Kg7 {[%clk 0:00:32]} 41. Nxc4 {[%clk 0:00:44]}  Bxc4 {[%clk 0:00:31]} 42. Qxc4 {[%clk 0:00:45]}  c2 {[%clk 0:00:31]} 43. Qg4+ {[%clk 0:00:42]}  Kf8 {[%clk 0:00:19]} 44. Qc8+ {[%clk 0:00:40]}  Kg7 {[%clk 0:00:18]} 45. Qg4+ {[%clk 0:00:40]}  Kf8 {[%clk 0:00:16]} 46. Qc8+ {[%clk 0:00:39]}  Kg7 {[%clk 0:00:16]} 47. Qg4+ {[%clk 0:00:38]} 1/2-1/2


[Site "https://www.chess.com"]

[Event "Titled Tuesday Blitz November 14 Early 2023"]
[White "Santos Flores, Alberto"]
[Black "Borsuk, Konstantin"]
[WhiteFideId "3601234"]
[BlackFideId "14113406"]
[WhiteElo "2550"]
[BlackElo "2710"]
[Result "0-1"]
[Round "6"]
[TimeControl "180+1"]
[Date "2023.11.14"]
[WhiteClock "0:00:00"]
[BlackClock "0:00:03"]
[Board "64"]

1. e4 {[%clk 0:03:00]}  e6 {[%clk 0:02:58]} 2. d4 {[%clk 0:02:58]}  d5 {[%clk 0:02:58]} 3. Nc3 {[%clk 0:02:58]}  Bb4 {[%clk 0:02:57]} 4. e5 {[%clk 0:02:58]}  b6 {[%clk 0:02:57]} 5. Qg4 {[%clk 0:02:53]}  Bf8 {[%clk 0:02:57]} 6. Nce2 {[%clk 0:02:47]}  Ne7 {[%clk 0:02:55]} 7. c3 {[%clk 0:02:46]}  Ba6 {[%clk 0:02:53]} 8. Nf3 {[%clk 0:02:43]}  Qd7 {[%clk 0:02:49]} 9. h4 {[%clk 0:02:42]}  c5 {[%clk 0:02:46]} 10. Be3 {[%clk 0:02:32]}  Nf5 {[%clk 0:02:43]} 11. Ng3 {[%clk 0:02:31]}  Bxf1 {[%clk 0:02:36]} 12. Kxf1 {[%clk 0:02:28]}  Nxe3+ {[%clk 0:02:27]} 13. fxe3 {[%clk 0:02:29]}  Nc6 {[%clk 0:02:24]} 14. Kg1 {[%clk 0:02:29]}  h6 {[%clk 0:02:15]} 15. Rf1 {[%clk 0:02:26]}  O-O-O {[%clk 0:02:14]} 16. Nh5 {[%clk 0:02:21]}  Kb8 {[%clk 0:02:06]} 17. Rh3 {[%clk 0:02:16]}  Ne7 {[%clk 0:02:00]} 18. Nd2 {[%clk 0:01:53]}  Nf5 {[%clk 0:01:58]} 19. Qf4 {[%clk 0:01:48]}  Qb5 {[%clk 0:01:46]} 20. g4 {[%clk 0:01:12]}  Qxb2 {[%clk 0:01:45]} 21. Rf2 {[%clk 0:01:11]}  g5 {[%clk 0:01:39]} 22. hxg5 {[%clk 0:01:09]}  hxg5 {[%clk 0:01:39]} 23. Qxg5 {[%clk 0:01:00]}  Be7 {[%clk 0:01:39]} 24. Qf4 {[%clk 0:01:00]}  Rhg8 {[%clk 0:01:34]} 25. Nf6 {[%clk 0:00:50]}  Bxf6 {[%clk 0:01:29]} 26. exf6+ {[%clk 0:00:50]}  Nd6 {[%clk 0:01:28]} 27. Nc4 {[%clk 0:00:33]}  e5 {[%clk 0:00:51]} 28. dxe5 {[%clk 0:00:24]}  Qxc3 {[%clk 0:00:32]} 29. Nxd6 {[%clk 0:00:22]}  Qd3 {[%clk 0:00:25]} 30. Nxf7 {[%clk 0:00:21]}  Qd1+ {[%clk 0:00:23]} 31. Kh2 {[%clk 0:00:18]}  Rxg4 {[%clk 0:00:21]} 32. e6+ {[%clk 0:00:14]}  Rxf4 {[%clk 0:00:21]} 33. exf4 {[%clk 0:00:15]}  Rg8 {[%clk 0:00:18]} 34. Rg2 {[%clk 0:00:12]}  Rxg2+ {[%clk 0:00:17]} 35. Kxg2 {[%clk 0:00:13]}  Qe2+ {[%clk 0:00:17]} 36. Kg3 {[%clk 0:00:13]}  Qxe6 {[%clk 0:00:18]} 37. Ne5 {[%clk 0:00:13]}  d4 {[%clk 0:00:15]} 38. f7 {[%clk 0:00:13]}  Qf6 {[%clk 0:00:14]} 39. Kf3 {[%clk 0:00:09]}  Kc7 {[%clk 0:00:12]} 40. Rg3 {[%clk 0:00:10]}  d3 {[%clk 0:00:11]} 41. Ke3 {[%clk 0:00:06]}  d2 {[%clk 0:00:10]} 42. Rg1 {[%clk 0:00:05]}  Qd6 {[%clk 0:00:08]} 43. Rd1 {[%clk 0:00:02]}  Qd4+ {[%clk 0:00:07]} 44. Kf3 {[%clk 0:00:02]}  Qd6 {[%clk 0:00:05]} 45. Rxd2 {[%clk 0:00:00]}  Qxd2 {[%clk 0:00:03]} 0-1


[Site "https://www.chess.com"]

[Event "Titled Tuesday Blitz November 14 Early 2023"]
[White "Chinguun, Sumiya"]
[Black "Karas, Marek"]
[WhiteFideId "4902572"]
[BlackFideId "14928558"]
[WhiteElo "2710"]
[BlackElo "2545"]
[Result "0-1"]
[Round "6"]
[TimeControl "180+1"]
[Date "2023.11.14"]
[WhiteClock "0:00:23"]
[BlackClock "0:00:06"]
[Board "65"]

1. e4 {[%clk 0:03:00]}  e6 {[%clk 0:02:59]} 2. d4 {[%clk 0:03:00]}  d5 {[%clk 0:03:00]} 3. Nc3 {[%clk 0:03:01]}  Nf6 {[%clk 0:03:00]} 4. e5 {[%clk 0:03:01]}  Nfd7 {[%clk 0:03:00]} 5. Nf3 {[%clk 0:03:00]}  c5 {[%clk 0:03:01]} 6. Be2 {[%clk 0:02:59]}  cxd4 {[%clk 0:02:57]} 7. Qxd4 {[%clk 0:02:59]}  Nc6 {[%clk 0:02:57]} 8. Qf4 {[%clk 0:02:58]}  Bb4 {[%clk 0:02:33]} 9. O-O {[%clk 0:02:57]}  Bxc3 {[%clk 0:02:30]} 10. bxc3 {[%clk 0:02:57]}  Qc7 {[%clk 0:02:30]} 11. Qg3 {[%clk 0:02:54]}  Rg8 {[%clk 0:02:09]} 12. Bf4 {[%clk 0:02:46]}  Nc5 {[%clk 0:01:58]} 13. Bd3 {[%clk 0:02:36]}  Nxd3 {[%clk 0:01:54]} 14. cxd3 {[%clk 0:02:36]}  Bd7 {[%clk 0:01:39]} 15. Qh4 {[%clk 0:02:29]}  h6 {[%clk 0:01:30]} 16. c4 {[%clk 0:02:26]}  dxc4 {[%clk 0:01:24]} 17. dxc4 {[%clk 0:02:26]}  g5 {[%clk 0:00:58]} 18. Qg3 {[%clk 0:02:17]}  O-O-O {[%clk 0:00:51]} 19. Be3 {[%clk 0:02:17]}  Kb8 {[%clk 0:00:46]} 20. Rab1 {[%clk 0:02:10]}  Ka8 {[%clk 0:00:38]} 21. Bc5 {[%clk 0:02:07]}  Na5 {[%clk 0:00:26]} 22. Bd6 {[%clk 0:02:06]}  Qxc4 {[%clk 0:00:25]} 23. Nd2 {[%clk 0:02:01]}  Qa6 {[%clk 0:00:23]} 24. Ne4 {[%clk 0:02:01]}  Bc6 {[%clk 0:00:21]} 25. Nc5 {[%clk 0:02:00]}  Qc4 {[%clk 0:00:18]} 26. Rfc1 {[%clk 0:01:59]}  Qd5 {[%clk 0:00:17]} 27. Bc7 {[%clk 0:01:58]}  Nc4 {[%clk 0:00:15]} 28. Bxd8 {[%clk 0:01:57]}  Rxd8 {[%clk 0:00:16]} 29. h3 {[%clk 0:01:55]}  Nxe5 {[%clk 0:00:08]} 30. Rd1 {[%clk 0:01:44]}  Qxd1+ {[%clk 0:00:08]} 31. Rxd1 {[%clk 0:01:44]}  Rxd1+ {[%clk 0:00:09]} 32. Kh2 {[%clk 0:01:45]}  Rd5 {[%clk 0:00:09]} 33. Ne4 {[%clk 0:01:43]}  Ng6 {[%clk 0:00:08]} 34. Nf6 {[%clk 0:01:43]}  Rd8 {[%clk 0:00:08]} 35. Qc7 {[%clk 0:01:42]}  Rf8 {[%clk 0:00:06]} 36. Nh7 {[%clk 0:01:38]}  Rb8 {[%clk 0:00:05]} 37. Qxf7 {[%clk 0:01:38]}  Nf4 {[%clk 0:00:06]} 38. g3 {[%clk 0:01:36]}  Nd3 {[%clk 0:00:06]} 39. Kg1 {[%clk 0:01:28]}  Ne5 {[%clk 0:00:03]} 40. Qxe6 {[%clk 0:01:25]}  Nf3+ {[%clk 0:00:03]} 41. Kf1 {[%clk 0:01:25]}  Re8 {[%clk 0:00:03]} 42. Qxe8+ {[%clk 0:01:08]}  Bxe8 {[%clk 0:00:04]} 43. Ke2 {[%clk 0:01:07]}  Nd4+ {[%clk 0:00:05]} 44. Ke3 {[%clk 0:01:05]}  Nf5+ {[%clk 0:00:04]} 45. Kd2 {[%clk 0:01:02]}  Bg6 {[%clk 0:00:03]} 46. Nf6 {[%clk 0:01:02]}  Kb8 {[%clk 0:00:03]} 47. Nd5 {[%clk 0:00:58]}  Kc8 {[%clk 0:00:03]} 48. g4 {[%clk 0:00:58]}  Kd7 {[%clk 0:00:02]} 49. gxf5 {[%clk 0:00:51]}  Bxf5 {[%clk 0:00:03]} 50. Ke3 {[%clk 0:00:47]}  Bxh3 {[%clk 0:00:03]} 51. Nf6+ {[%clk 0:00:47]}  Kc6 {[%clk 0:00:02]} 52. Ng8 {[%clk 0:00:45]}  h5 {[%clk 0:00:02]} 53. Nf6 {[%clk 0:00:44]}  h4 {[%clk 0:00:02]} 54. Ne4 {[%clk 0:00:44]}  Be6 {[%clk 0:00:02]} 55. a3 {[%clk 0:00:42]}  g4 {[%clk 0:00:02]} 56. Kf4 {[%clk 0:00:40]}  h3 {[%clk 0:00:02]} 57. Kg3 {[%clk 0:00:40]}  Bc8 {[%clk 0:00:02]} 58. Kh2 {[%clk 0:00:38]}  b5 {[%clk 0:00:02]} 59. Kg3 {[%clk 0:00:38]}  a5 {[%clk 0:00:03]} 60. Nd2 {[%clk 0:00:34]}  b4 {[%clk 0:00:02]} 61. axb4 {[%clk 0:00:34]}  axb4 {[%clk 0:00:03]} 62. f3 {[%clk 0:00:34]}  gxf3 {[%clk 0:00:03]} 63. Kxf3 {[%clk 0:00:34]}  Kb5 {[%clk 0:00:03]} 64. Nb3 {[%clk 0:00:29]}  Kc4 {[%clk 0:00:03]} 65. Nd2+ {[%clk 0:00:29]}  Kd3 {[%clk 0:00:03]} 66. Ne4 {[%clk 0:00:29]}  b3 {[%clk 0:00:02]} 67. Nc5+ {[%clk 0:00:28]}  Kc4 {[%clk 0:00:02]} 68. Na4 {[%clk 0:00:28]}  Kb4 {[%clk 0:00:02]} 69. Nb2 {[%clk 0:00:28]}  Bb7+ {[%clk 0:00:03]} 70. Kg3 {[%clk 0:00:27]}  Bg2 {[%clk 0:00:03]} 71. Nd3+ {[%clk 0:00:27]}  Kc3 {[%clk 0:00:04]} 72. Nc5 {[%clk 0:00:26]}  b2 {[%clk 0:00:03]} 73. Na4+ {[%clk 0:00:27]}  Kb3 {[%clk 0:00:03]} 74. Nxb2 {[%clk 0:00:27]}  Kxb2 {[%clk 0:00:04]} 75. Kf2 {[%clk 0:00:27]}  Kc3 {[%clk 0:00:05]} 76. Kg1 {[%clk 0:00:27]}  Kd4 {[%clk 0:00:05]} 77. Kf2 {[%clk 0:00:28]}  Ke5 {[%clk 0:00:05]} 78. Kg3 {[%clk 0:00:28]}  Kf5 {[%clk 0:00:06]} 79. Kh2 {[%clk 0:00:26]}  Kg4 {[%clk 0:00:06]} 80. Kg1 {[%clk 0:00:27]}  Bc6 {[%clk 0:00:06]} 81. Kh2 {[%clk 0:00:27]}  Kh4 {[%clk 0:00:06]} 82. Kg1 {[%clk 0:00:23]}  Kg3 {[%clk 0:00:06]} 0-1


[Site "https://www.chess.com"]